[Event "December 12 Late 2023"]
[Site "https://www.chess.com"]
[Date "2023.12.12"]
[Round "4"]
[White "Disconzi da Silva, Rodrigo"]
[Black "Hernandez Jimenez, Alexander Andres"]
[Result "1/2-1/2"]
[Board "135"]
[TimeControl "180+1"]
[WhiteFideId "2100991"]
[BlackFideId "3900452"]
[WhiteElo "2461"]
[BlackElo "2304"]
[WhiteTeam "BRA"]
[BlackTeam "VEN"]
[WhiteClock "0:00:05"]
[BlackClock "0:00:03"]

1. d4 {[%clk 0:03:00]}  Nf6 {[%clk 0:02:59]} 2. c4 {[%clk 0:03:00]}  e6 {[%clk 0:02:59]} 3. Nc3 {[%clk 0:03:01]}  Bb4 {[%clk 0:02:59]} 4. Nf3 {[%clk 0:03:02]}  c5 {[%clk 0:02:58]} 5. Bg5 {[%clk 0:03:01]}  cxd4 {[%clk 0:02:51]} 6. Nxd4 {[%clk 0:03:01]}  Bxc3+ {[%clk 0:02:40]} 7. bxc3 {[%clk 0:03:00]}  Qa5 {[%clk 0:02:40]} 8. Bd2 {[%clk 0:02:56]}  Ne4 {[%clk 0:02:39]} 9. f3 {[%clk 0:02:51]}  Nxd2 {[%clk 0:02:36]} 10. Qxd2 {[%clk 0:02:51]}  Nc6 {[%clk 0:02:31]} 11. e4 {[%clk 0:02:51]}  b6 {[%clk 0:02:27]} 12. Be2 {[%clk 0:02:50]}  Ba6 {[%clk 0:02:27]} 13. Nb5 {[%clk 0:02:34]}  Bxb5 {[%clk 0:02:12]} 14. cxb5 {[%clk 0:02:34]}  Ne5 {[%clk 0:02:12]} 15. Qd4 {[%clk 0:02:28]}  Ng6 {[%clk 0:01:51]} 16. O-O {[%clk 0:02:24]}  O-O {[%clk 0:01:49]} 17. Rfd1 {[%clk 0:02:12]}  Rfc8 {[%clk 0:01:45]} 18. c4 {[%clk 0:02:11]}  Rc7 {[%clk 0:01:36]} 19. g3 {[%clk 0:01:58]}  Rac8 {[%clk 0:01:35]} 20. f4 {[%clk 0:01:56]}  Nf8 {[%clk 0:01:34]} 21. e5 {[%clk 0:01:53]}  Rc5 {[%clk 0:01:29]} 22. Kg2 {[%clk 0:01:50]}  R8c7 {[%clk 0:01:21]} 23. a3 {[%clk 0:01:45]}  Ng6 {[%clk 0:01:20]} 24. Rdb1 {[%clk 0:01:42]}  Ne7 {[%clk 0:01:19]} 25. g4 {[%clk 0:01:40]}  h5 {[%clk 0:01:15]} 26. h3 {[%clk 0:01:40]}  Qa4 {[%clk 0:01:11]} 27. Ra2 {[%clk 0:00:58]}  Rxc4 {[%clk 0:00:48]} 28. Bxc4 {[%clk 0:00:57]}  Rxc4 {[%clk 0:00:48]} 29. Qd1 {[%clk 0:00:49]}  Rxf4 {[%clk 0:00:36]} 30. Qxa4 {[%clk 0:00:49]}  Rxa4 {[%clk 0:00:36]} 31. Rb4 {[%clk 0:00:47]}  Ra5 {[%clk 0:00:33]} 32. a4 {[%clk 0:00:43]}  hxg4 {[%clk 0:00:32]} 33. hxg4 {[%clk 0:00:43]}  Nd5 {[%clk 0:00:29]} 34. Rd4 {[%clk 0:00:37]}  a6 {[%clk 0:00:28]} 35. bxa6 {[%clk 0:00:34]}  Rxa6 {[%clk 0:00:29]} 36. Kf3 {[%clk 0:00:30]}  Kf8 {[%clk 0:00:28]} 37. Rb2 {[%clk 0:00:27]}  f6 {[%clk 0:00:26]} 38. exf6 {[%clk 0:00:26]}  gxf6 {[%clk 0:00:26]} 39. Rh2 {[%clk 0:00:23]}  Ke7 {[%clk 0:00:25]} 40. Rb2 {[%clk 0:00:20]}  Kd6 {[%clk 0:00:24]} 41. Rb3 {[%clk 0:00:20]}  Ra5 {[%clk 0:00:22]} 42. Ke4 {[%clk 0:00:20]}  Rc5 {[%clk 0:00:22]} 43. Rb5 {[%clk 0:00:18]}  Rxb5 {[%clk 0:00:20]} 44. axb5 {[%clk 0:00:18]}  Kc5 {[%clk 0:00:21]} 45. Rd1 {[%clk 0:00:16]}  Kxb5 {[%clk 0:00:21]} 46. Rc1 {[%clk 0:00:13]}  Ka4 {[%clk 0:00:19]} 47. Kd4 {[%clk 0:00:10]}  b5 {[%clk 0:00:19]} 48. Kc5 {[%clk 0:00:10]}  b4 {[%clk 0:00:18]} 49. Kc4 {[%clk 0:00:10]}  Ka3 {[%clk 0:00:17]} 50. Ra1+ {[%clk 0:00:10]}  Kb2 {[%clk 0:00:17]} 51. Rg1 {[%clk 0:00:09]}  Ka2 {[%clk 0:00:16]} 52. Rg2+ {[%clk 0:00:10]}  Ka3 {[%clk 0:00:16]} 53. Rg3+ {[%clk 0:00:10]}  Ka4 {[%clk 0:00:15]} 54. Rg1 {[%clk 0:00:10]}  Ka5 {[%clk 0:00:15]} 55. Ra1+ {[%clk 0:00:10]}  Kb6 {[%clk 0:00:15]} 56. Rf1 {[%clk 0:00:10]}  Kc6 {[%clk 0:00:14]} 57. Rd1 {[%clk 0:00:10]}  Kd6 {[%clk 0:00:14]} 58. Rd2 {[%clk 0:00:10]}  Ke5 {[%clk 0:00:15]} 59. Re2+ {[%clk 0:00:10]}  Kf4 {[%clk 0:00:15]} 60. Rg2 {[%clk 0:00:10]}  Kf3 {[%clk 0:00:15]} 61. Rg1 {[%clk 0:00:11]}  Ne3+ {[%clk 0:00:12]} 62. Kxb4 {[%clk 0:00:09]}  Nxg4 {[%clk 0:00:10]} 63. Rd1 {[%clk 0:00:09]}  d5 {[%clk 0:00:09]} 64. Kc5 {[%clk 0:00:09]}  Ke4 {[%clk 0:00:05]} 65. Re1+ {[%clk 0:00:10]}  Kf5 {[%clk 0:00:05]} 66. Rf1+ {[%clk 0:00:10]}  Ke5 {[%clk 0:00:04]} 67. Re1+ {[%clk 0:00:10]}  Kf5 {[%clk 0:00:05]} 68. Rf1+ {[%clk 0:00:10]}  Kg5 {[%clk 0:00:05]} 69. Kd6 {[%clk 0:00:10]}  Ne3 {[%clk 0:00:04]} 70. Rg1+ {[%clk 0:00:10]}  Kf5 {[%clk 0:00:04]} 71. Rg3 {[%clk 0:00:08]}  d4 {[%clk 0:00:03]} 72. Kc5 {[%clk 0:00:08]}  e5 {[%clk 0:00:04]} 73. Rf3+ {[%clk 0:00:08]}  Ke4 {[%clk 0:00:04]} 74. Rxf6 {[%clk 0:00:07]}  d3 {[%clk 0:00:05]} 75. Rd6 {[%clk 0:00:08]}  Nf5 {[%clk 0:00:04]} 76. Rd7 {[%clk 0:00:07]}  Ng3 {[%clk 0:00:04]} 77. Kc4 {[%clk 0:00:08]}  Ne2 {[%clk 0:00:04]} 78. Rxd3 {[%clk 0:00:07]}  Nd4 {[%clk 0:00:05]} 79. Rd1 {[%clk 0:00:06]}  Kf4 {[%clk 0:00:04]} 80. Re1 {[%clk 0:00:06]}  Nf5 {[%clk 0:00:04]} 81. Kd3 {[%clk 0:00:05]}  Nd6 {[%clk 0:00:03]} 82. Rxe5 {[%clk 0:00:05]}  Kxe5 {[%clk 0:00:03]} 1/2-1/2

[Event "December 12 Late 2023"]
[Site "https://www.chess.com"]
[Date "2023.12.12"]
[Round "4"]
[White "Topalov, Aleksandar"]
[Black "Ghosh, Chanchal Kumer"]
[Result "0-1"]
[Board "137"]
[TimeControl "180+1"]
[WhiteFideId "925659"]
[BlackFideId "10201858"]
[WhiteElo "2389"]
[BlackElo "2080"]
[WhiteTeam "SRB"]
[BlackTeam "BAN"]
[WhiteClock "0:01:52"]
[BlackClock "0:00:31"]

1. b3 {[%clk 0:02:52]}  d5 {[%clk 0:02:58]} 2. Bb2 {[%clk 0:02:48]}  e6 {[%clk 0:02:58]} 3. Nf3 {[%clk 0:02:46]}  Nf6 {[%clk 0:02:58]} 4. e3 {[%clk 0:02:45]}  c5 {[%clk 0:02:58]} 5. d4 {[%clk 0:02:45]}  cxd4 {[%clk 0:02:57]} 6. exd4 {[%clk 0:02:43]}  Be7 {[%clk 0:02:54]} 7. Nbd2 {[%clk 0:02:42]}  O-O {[%clk 0:02:54]} 8. Bd3 {[%clk 0:02:42]}  h6 {[%clk 0:02:52]} 9. a3 {[%clk 0:02:42]}  Nbd7 {[%clk 0:02:49]} 10. O-O {[%clk 0:02:41]}  a6 {[%clk 0:02:47]} 11. Re1 {[%clk 0:02:41]}  b5 {[%clk 0:02:46]} 12. Qe2 {[%clk 0:02:40]}  Bb7 {[%clk 0:02:46]} 13. Ne5 {[%clk 0:02:38]}  Rc8 {[%clk 0:02:43]} 14. f4 {[%clk 0:02:36]}  Qc7 {[%clk 0:02:13]} 15. Rac1 {[%clk 0:02:31]}  Bd6 {[%clk 0:01:58]} 16. g4 {[%clk 0:02:23]}  Nb6 {[%clk 0:01:30]} 17. g5 {[%clk 0:02:22]}  hxg5 {[%clk 0:01:27]} 18. fxg5 {[%clk 0:02:22]}  Bxe5 {[%clk 0:01:21]} 19. dxe5 {[%clk 0:02:05]}  Ne4 {[%clk 0:01:05]} 20. Nxe4 {[%clk 0:01:52]}  dxe4 {[%clk 0:01:02]} 21. Bxe4 {[%clk 0:01:52]}  Bxe4 {[%clk 0:00:53]} 22. Qe3 {[%clk 0:01:52]}  Bb7 {[%clk 0:00:33]} 23. Qe4 {[%clk 0:01:52]}  Bxe4 {[%clk 0:00:31]} 0-1

[Event "December 12 Late 2023"]
[Site "https://www.chess.com"]
[Date "2023.12.12"]
[Round "4"]
[White "Stead, Kerry"]
[Black "Zampronha, Wladimir Camilo"]
[Result "1-0"]
[Board "138"]
[TimeControl "180+1"]
[WhiteFideId "3202577"]
[BlackFideId "2103087"]
[WhiteElo "2064"]
[BlackElo "2363"]
[WhiteTeam "AUS"]
[BlackTeam "BRA"]
[WhiteClock "0:00:39"]
[BlackClock "0:00:32"]

1. d4 {[%clk 0:02:26]}  Nf6 {[%clk 0:02:59]} 2. f3 {[%clk 0:02:26]}  d5 {[%clk 0:02:56]} 3. e4 {[%clk 0:02:26]}  dxe4 {[%clk 0:02:55]} 4. Nc3 {[%clk 0:02:26]}  Bf5 {[%clk 0:02:48]} 5. fxe4 {[%clk 0:02:26]}  Nxe4 {[%clk 0:02:47]} 6. Qf3 {[%clk 0:02:25]}  Nxc3 {[%clk 0:02:37]} 7. bxc3 {[%clk 0:02:23]}  Qc8 {[%clk 0:02:30]} 8. Bc4 {[%clk 0:02:22]}  e6 {[%clk 0:02:29]} 9. h4 {[%clk 0:02:19]}  h5 {[%clk 0:02:25]} 10. Nh3 {[%clk 0:02:18]}  Nd7 {[%clk 0:02:16]} 11. Ng5 {[%clk 0:02:17]}  Nf6 {[%clk 0:02:16]} 12. Nxf7 {[%clk 0:02:09]}  Bg4 {[%clk 0:02:09]} 13. Nxh8 {[%clk 0:01:47]}  Bxf3 {[%clk 0:02:08]} 14. gxf3 {[%clk 0:01:48]}  Bd6 {[%clk 0:01:59]} 15. Ng6 {[%clk 0:01:46]}  Kf7 {[%clk 0:01:59]} 16. Ne5+ {[%clk 0:01:44]}  Bxe5 {[%clk 0:01:59]} 17. dxe5 {[%clk 0:01:45]}  Nd5 {[%clk 0:01:59]} 18. Bd2 {[%clk 0:01:42]}  c6 {[%clk 0:01:58]} 19. Rg1 {[%clk 0:01:42]}  Qd8 {[%clk 0:01:54]} 20. Bd3 {[%clk 0:01:41]}  Qxh4+ {[%clk 0:01:51]} 21. Kf1 {[%clk 0:01:39]}  Qh3+ {[%clk 0:01:49]} 22. Kf2 {[%clk 0:01:38]}  Qh4+ {[%clk 0:01:36]} 23. Rg3 {[%clk 0:01:30]}  Nf4 {[%clk 0:01:33]} 24. Rg1 {[%clk 0:01:24]}  Rg8 {[%clk 0:01:28]} 25. Kf1 {[%clk 0:01:19]}  g5 {[%clk 0:01:25]} 26. Be4 {[%clk 0:01:13]}  a5 {[%clk 0:01:08]} 27. a4 {[%clk 0:01:13]}  Nh3 {[%clk 0:00:49]} 28. R1g2 {[%clk 0:01:10]}  g4 {[%clk 0:00:45]} 29. f4 {[%clk 0:01:04]}  Qd8 {[%clk 0:00:42]} 30. Rd3 {[%clk 0:01:03]}  Qb6 {[%clk 0:00:40]} 31. Be1 {[%clk 0:00:44]}  Re8 {[%clk 0:00:36]} 32. Bh4 {[%clk 0:00:40]}  Kg7 {[%clk 0:00:32]} 33. Rd7+ {[%clk 0:00:39]}  Kh6 {[%clk 0:00:32]} 34. Rh7# {[%clk 0:00:39]} 1-0

[Event "December 12 Late 2023"]
[Site "https://www.chess.com"]
[Date "2023.12.12"]
[Round "4"]
[White "Gonzalez Zharikov, Andrey"]
[Black "Yang, Kevin"]
[Result "1-0"]
[Board "139"]
[TimeControl "180+1"]
[WhiteFideId "5145287"]
[BlackFideId "30908485"]
[WhiteElo "2277"]
[BlackElo "2574"]
[WhiteTeam "MEX"]
[BlackTeam "USA"]
[WhiteClock "0:00:10"]
[BlackClock "0:00:10"]

1. e4 {[%clk 0:03:00]}  e6 {[%clk 0:02:59]} 2. d4 {[%clk 0:02:55]}  d5 {[%clk 0:02:59]} 3. Nc3 {[%clk 0:02:53]}  c5 {[%clk 0:02:57]} 4. exd5 {[%clk 0:02:50]}  exd5 {[%clk 0:02:57]} 5. dxc5 {[%clk 0:02:47]}  d4 {[%clk 0:02:55]} 6. Ne4 {[%clk 0:02:46]}  Bxc5 {[%clk 0:02:54]} 7. Nxc5 {[%clk 0:02:22]}  Qa5+ {[%clk 0:02:48]} 8. c3 {[%clk 0:02:21]}  Qxc5 {[%clk 0:02:46]} 9. Qxd4 {[%clk 0:02:17]}  Qxd4 {[%clk 0:02:42]} 10. cxd4 {[%clk 0:02:17]}  Nf6 {[%clk 0:02:42]} 11. Bb5+ {[%clk 0:02:12]}  Bd7 {[%clk 0:02:40]} 12. Bxd7+ {[%clk 0:02:11]}  Nbxd7 {[%clk 0:02:40]} 13. Nf3 {[%clk 0:02:10]}  O-O-O {[%clk 0:02:37]} 14. O-O {[%clk 0:02:08]}  h6 {[%clk 0:02:36]} 15. Bf4 {[%clk 0:02:06]}  Nb6 {[%clk 0:02:29]} 16. Rac1+ {[%clk 0:02:02]}  Kd7 {[%clk 0:02:29]} 17. Rc7+ {[%clk 0:01:53]}  Ke8 {[%clk 0:02:26]} 18. Re1+ {[%clk 0:01:49]}  Kf8 {[%clk 0:02:13]} 19. Rxb7 {[%clk 0:01:43]}  Nbd5 {[%clk 0:01:19]} 20. Bc7 {[%clk 0:01:32]}  Rc8 {[%clk 0:01:10]} 21. Bd6+ {[%clk 0:01:31]}  Kg8 {[%clk 0:01:09]} 22. Bc5 {[%clk 0:01:31]}  a5 {[%clk 0:01:01]} 23. Ne5 {[%clk 0:01:12]}  Kh7 {[%clk 0:01:00]} 24. Nxf7 {[%clk 0:01:09]}  Rhe8 {[%clk 0:00:58]} 25. Rxe8 {[%clk 0:01:05]}  Rxe8 {[%clk 0:00:58]} 26. Kf1 {[%clk 0:01:03]}  Ne4 {[%clk 0:00:52]} 27. f3 {[%clk 0:00:27]}  Ne3+ {[%clk 0:00:38]} 28. Kg1 {[%clk 0:00:22]}  Nxc5 {[%clk 0:00:21]} 29. dxc5 {[%clk 0:00:23]}  Nd1 {[%clk 0:00:21]} 30. h3 {[%clk 0:00:17]}  Re1+ {[%clk 0:00:21]} 31. Kh2 {[%clk 0:00:18]}  Re2 {[%clk 0:00:21]} 32. c6 {[%clk 0:00:15]}  Ne3 {[%clk 0:00:22]} 33. c7 {[%clk 0:00:11]}  Rxg2+ {[%clk 0:00:22]} 34. Kh1 {[%clk 0:00:11]}  Rc2 {[%clk 0:00:23]} 35. Nd6 {[%clk 0:00:10]}  Rc1+ {[%clk 0:00:20]} 36. Kh2 {[%clk 0:00:10]}  Rc2+ {[%clk 0:00:20]} 37. Kg3 {[%clk 0:00:10]}  Nf1+ {[%clk 0:00:19]} 38. Kf4 {[%clk 0:00:10]}  g5+ {[%clk 0:00:19]} 39. Ke5 {[%clk 0:00:10]}  Re2+ {[%clk 0:00:10]} 40. Kf6 {[%clk 0:00:10]} 1-0

[Event "December 12 Late 2023"]
[Site "https://www.chess.com"]
[Date "2023.12.12"]
[Round "4"]
[White "Rees, Ioan"]
[Black "Minina, Veronika"]
[Result "1-0"]
[Board "140"]
[TimeControl "180+1"]
[WhiteFideId "1801236"]
[BlackFideId "4174780"]
[WhiteElo "2526"]
[BlackElo "2250"]
[WhiteTeam "WLS"]
[BlackTeam "RUS"]
[WhiteClock "0:00:49"]
[BlackClock "0:00:04"]

1. e4 {[%clk 0:03:00]}  c5 {[%clk 0:02:57]} 2. c3 {[%clk 0:03:00]}  Nf6 {[%clk 0:02:52]} 3. e5 {[%clk 0:03:00]}  Nd5 {[%clk 0:02:50]} 4. Nf3 {[%clk 0:03:01]}  d6 {[%clk 0:02:18]} 5. Bc4 {[%clk 0:02:59]}  Nb6 {[%clk 0:02:17]} 6. Bb3 {[%clk 0:02:59]}  Nc6 {[%clk 0:02:14]} 7. exd6 {[%clk 0:02:57]}  Qxd6 {[%clk 0:02:14]} 8. O-O {[%clk 0:02:55]}  g6 {[%clk 0:02:13]} 9. Na3 {[%clk 0:02:54]}  a6 {[%clk 0:02:11]} 10. Re1 {[%clk 0:02:34]}  Bg7 {[%clk 0:02:09]} 11. d3 {[%clk 0:02:25]}  O-O {[%clk 0:02:09]} 12. Bg5 {[%clk 0:02:24]}  e6 {[%clk 0:01:56]} 13. Bh4 {[%clk 0:02:19]}  Ne5 {[%clk 0:01:41]} 14. Bg3 {[%clk 0:02:16]}  Nxf3+ {[%clk 0:01:41]} 15. Qxf3 {[%clk 0:02:17]}  Qd7 {[%clk 0:01:32]} 16. Rad1 {[%clk 0:02:16]}  Nd5 {[%clk 0:01:31]} 17. Nc4 {[%clk 0:02:14]}  b5 {[%clk 0:01:27]} 18. Ne5 {[%clk 0:02:14]}  Qb7 {[%clk 0:01:21]} 19. h4 {[%clk 0:02:10]}  h5 {[%clk 0:01:19]} 20. d4 {[%clk 0:01:53]}  c4 {[%clk 0:01:12]} 21. Bc2 {[%clk 0:01:53]}  Nf6 {[%clk 0:00:48]} 22. Qe2 {[%clk 0:01:41]}  Qd5 {[%clk 0:00:43]} 23. f3 {[%clk 0:01:32]}  Bb7 {[%clk 0:00:42]} 24. Bf4 {[%clk 0:01:29]}  Qd8 {[%clk 0:00:31]} 25. Bg5 {[%clk 0:01:29]}  Qa5 {[%clk 0:00:31]} 26. a3 {[%clk 0:01:28]}  Rfe8 {[%clk 0:00:28]} 27. Bxf6 {[%clk 0:01:15]}  Bxf6 {[%clk 0:00:27]} 28. Be4 {[%clk 0:01:16]}  Qc7 {[%clk 0:00:22]} 29. Bxb7 {[%clk 0:01:10]}  Qxb7 {[%clk 0:00:22]} 30. Qe4 {[%clk 0:01:11]}  Qxe4 {[%clk 0:00:16]} 31. Rxe4 {[%clk 0:01:11]}  Red8 {[%clk 0:00:14]} 32. Kh2 {[%clk 0:01:08]}  Rd5 {[%clk 0:00:14]} 33. Rde1 {[%clk 0:01:06]}  Rad8 {[%clk 0:00:15]} 34. Nc6 {[%clk 0:01:02]}  Rc8 {[%clk 0:00:15]} 35. Nb4 {[%clk 0:01:00]}  Rd6 {[%clk 0:00:15]} 36. Kh3 {[%clk 0:00:58]}  a5 {[%clk 0:00:16]} 37. Nc2 {[%clk 0:00:56]}  Rb8 {[%clk 0:00:15]} 38. g4 {[%clk 0:00:55]}  hxg4+ {[%clk 0:00:13]} 39. fxg4 {[%clk 0:00:56]}  Kg7 {[%clk 0:00:13]} 40. Rf1 {[%clk 0:00:52]}  Rh8 {[%clk 0:00:13]} 41. Ref4 {[%clk 0:00:48]}  Bxh4 {[%clk 0:00:08]} 42. Rxf7+ {[%clk 0:00:48]}  Kg8 {[%clk 0:00:08]} 43. Rf8+ {[%clk 0:00:47]}  Kg7 {[%clk 0:00:09]} 44. Rxh8 {[%clk 0:00:48]}  Kxh8 {[%clk 0:00:09]} 45. Kxh4 {[%clk 0:00:48]}  b4 {[%clk 0:00:09]} 46. axb4 {[%clk 0:00:48]}  axb4 {[%clk 0:00:04]} 47. Nxb4 {[%clk 0:00:49]} 1-0

[Event "December 12 Late 2023"]
[Site "https://www.chess.com"]
[Date "2023.12.12"]
[Round "4"]
[White "Haszon, David"]
[Black "Brown, Raehanna"]
[Result "1-0"]
[Board "146"]
[TimeControl "180+1"]
[WhiteFideId "733610"]
[BlackFideId "7402740"]
[WhiteElo "2381"]
[BlackElo "2166"]
[WhiteTeam "HUN"]
[BlackTeam "JAM"]
[WhiteClock "0:01:18"]
[BlackClock "0:00:00"]

1. d4 {[%clk 0:03:00]}  Nf6 {[%clk 0:02:59]} 2. Bf4 {[%clk 0:03:01]}  d5 {[%clk 0:02:57]} 3. e3 {[%clk 0:03:01]}  e6 {[%clk 0:02:56]} 4. Nf3 {[%clk 0:03:00]}  Bd6 {[%clk 0:02:55]} 5. Nbd2 {[%clk 0:02:57]}  Bxf4 {[%clk 0:02:53]} 6. exf4 {[%clk 0:02:58]}  b6 {[%clk 0:02:48]} 7. c3 {[%clk 0:02:58]}  Bb7 {[%clk 0:02:47]} 8. g3 {[%clk 0:02:59]}  Nbd7 {[%clk 0:02:46]} 9. Bg2 {[%clk 0:02:59]}  O-O {[%clk 0:02:44]} 10. O-O {[%clk 0:03:00]}  c5 {[%clk 0:02:44]} 11. Re1 {[%clk 0:02:59]}  cxd4 {[%clk 0:02:33]} 12. Nxd4 {[%clk 0:02:59]}  Nc5 {[%clk 0:02:30]} 13. f5 {[%clk 0:02:50]}  exf5 {[%clk 0:02:15]} 14. Nxf5 {[%clk 0:02:51]}  Nd3 {[%clk 0:02:13]} 15. Re3 {[%clk 0:02:30]}  Nxb2 {[%clk 0:02:06]} 16. Qc2 {[%clk 0:02:30]}  d4 {[%clk 0:01:44]} 17. Bxb7 {[%clk 0:02:22]}  dxe3 {[%clk 0:01:42]} 18. Nxe3 {[%clk 0:02:23]}  Rb8 {[%clk 0:01:31]} 19. Bg2 {[%clk 0:02:21]}  Nd3 {[%clk 0:01:29]} 20. Ne4 {[%clk 0:02:21]}  Ne5 {[%clk 0:01:24]} 21. Rd1 {[%clk 0:02:19]}  Qe7 {[%clk 0:01:22]} 22. Nf5 {[%clk 0:02:18]}  Qe6 {[%clk 0:01:16]} 23. Nd4 {[%clk 0:02:18]}  Qe7 {[%clk 0:01:08]} 24. f4 {[%clk 0:02:08]}  Nxe4 {[%clk 0:00:51]} 25. Bxe4 {[%clk 0:02:01]}  Ng6 {[%clk 0:00:49]} 26. Kg2 {[%clk 0:01:53]}  Qc5 {[%clk 0:00:40]} 27. h4 {[%clk 0:01:51]}  Rbc8 {[%clk 0:00:37]} 28. Rd3 {[%clk 0:01:51]}  Rfd8 {[%clk 0:00:28]} 29. Qe2 {[%clk 0:01:48]}  Qc4 {[%clk 0:00:14]} 30. h5 {[%clk 0:01:46]}  Nf8 {[%clk 0:00:14]} 31. h6 {[%clk 0:01:45]}  g6 {[%clk 0:00:13]} 32. Qf3 {[%clk 0:01:37]}  f5 {[%clk 0:00:11]} 33. Bb7 {[%clk 0:01:36]}  Rc7 {[%clk 0:00:11]} 34. Re3 {[%clk 0:01:21]}  a5 {[%clk 0:00:07]} 35. g4 {[%clk 0:01:17]}  fxg4 {[%clk 0:00:06]} 36. Qe4 {[%clk 0:01:18]}  Rb8 {[%clk 0:00:00]} 37. Bd5+ {[%clk 0:01:18]} 1-0

[Event "December 12 Late 2023"]
[Site "https://www.chess.com"]
[Date "2023.12.12"]
[Round "4"]
[White "Nadera, Barlo A."]
[Black "Skaric, Djuro"]
[Result "1-0"]
[Board "148"]
[TimeControl "180+1"]
[WhiteFideId "5200598"]
[BlackFideId "934569"]
[WhiteElo "2161"]
[BlackElo "2370"]
[WhiteTeam "PHI"]
[BlackTeam "SRB"]
[WhiteClock "0:00:37"]
[BlackClock "0:00:00"]

1. d4 {[%clk 0:03:00]}  d6 {[%clk 0:03:00]} 2. c4 {[%clk 0:02:59]}  g6 {[%clk 0:03:01]} 3. Nc3 {[%clk 0:02:59]}  Bg7 {[%clk 0:03:02]} 4. e4 {[%clk 0:02:59]}  Nf6 {[%clk 0:03:03]} 5. Be2 {[%clk 0:02:58]}  O-O {[%clk 0:03:03]} 6. g4 {[%clk 0:02:57]}  Nc6 {[%clk 0:03:04]} 7. d5 {[%clk 0:02:56]}  Ne5 {[%clk 0:03:03]} 8. g5 {[%clk 0:02:57]}  Nh5 {[%clk 0:03:02]} 9. f4 {[%clk 0:02:56]}  Nd7 {[%clk 0:02:57]} 10. Bxh5 {[%clk 0:02:56]}  gxh5 {[%clk 0:02:52]} 11. Qxh5 {[%clk 0:02:56]}  e6 {[%clk 0:02:49]} 12. Nge2 {[%clk 0:02:51]}  Nc5 {[%clk 0:02:48]} 13. O-O {[%clk 0:02:43]}  exd5 {[%clk 0:02:47]} 14. cxd5 {[%clk 0:02:40]}  Re8 {[%clk 0:02:46]} 15. Qf3 {[%clk 0:02:36]}  f5 {[%clk 0:02:44]} 16. gxf6 {[%clk 0:02:26]}  Qxf6 {[%clk 0:02:44]} 17. Ng3 {[%clk 0:02:24]}  Qh4 {[%clk 0:02:40]} 18. Be3 {[%clk 0:02:17]}  Bg4 {[%clk 0:02:39]} 19. Qf2 {[%clk 0:02:10]}  Nd7 {[%clk 0:02:25]} 20. Rac1 {[%clk 0:02:04]}  a6 {[%clk 0:02:15]} 21. Rfe1 {[%clk 0:02:03]}  Nf6 {[%clk 0:02:12]} 22. Bd4 {[%clk 0:02:02]}  Re7 {[%clk 0:01:51]} 23. e5 {[%clk 0:02:02]}  Nh5 {[%clk 0:01:51]} 24. Nxh5 {[%clk 0:01:57]}  Qxf2+ {[%clk 0:01:46]} 25. Bxf2 {[%clk 0:01:55]}  Bxh5 {[%clk 0:01:46]} 26. exd6 {[%clk 0:01:54]}  Rxe1+ {[%clk 0:01:45]} 27. Rxe1 {[%clk 0:01:54]}  cxd6 {[%clk 0:01:45]} 28. Re6 {[%clk 0:01:52]}  Bf8 {[%clk 0:01:41]} 29. Ne4 {[%clk 0:01:50]}  Bf7 {[%clk 0:01:41]} 30. Rf6 {[%clk 0:01:41]}  Bxd5 {[%clk 0:01:40]} 31. Nxd6 {[%clk 0:01:38]}  Rd8 {[%clk 0:01:37]} 32. Nf5 {[%clk 0:01:37]}  Bxa2 {[%clk 0:01:34]} 33. Bb6 {[%clk 0:01:34]}  Rd1+ {[%clk 0:01:33]} 34. Kf2 {[%clk 0:01:34]}  Rd2+ {[%clk 0:01:33]} 35. Kg3 {[%clk 0:01:34]}  Rxb2 {[%clk 0:01:32]} 36. Bd4 {[%clk 0:01:33]}  Rb3+ {[%clk 0:01:32]} 37. Kg4 {[%clk 0:01:32]}  Rd3 {[%clk 0:01:30]} 38. Be5 {[%clk 0:01:29]}  Bf7 {[%clk 0:01:28]} 39. Nh6+ {[%clk 0:01:26]}  Bxh6 {[%clk 0:01:27]} 40. Rxh6 {[%clk 0:01:26]}  Bd5 {[%clk 0:01:07]} 41. Kg5 {[%clk 0:01:21]}  Rd2 {[%clk 0:01:01]} 42. Rd6 {[%clk 0:01:20]}  Rg2+ {[%clk 0:00:54]} 43. Kf5 {[%clk 0:01:19]}  Bc6 {[%clk 0:00:50]} 44. h4 {[%clk 0:01:18]}  Kf7 {[%clk 0:00:40]} 45. Rd8 {[%clk 0:01:16]}  a5 {[%clk 0:00:34]} 46. h5 {[%clk 0:01:15]}  a4 {[%clk 0:00:32]} 47. Bd6 {[%clk 0:01:14]}  h6 {[%clk 0:00:29]} 48. Rf8+ {[%clk 0:01:13]}  Kg7 {[%clk 0:00:28]} 49. Ra8 {[%clk 0:01:13]}  Rd2 {[%clk 0:00:24]} 50. Be5+ {[%clk 0:01:09]}  Kf7 {[%clk 0:00:24]} 51. Rh8 {[%clk 0:01:07]}  a3 {[%clk 0:00:23]} 52. Rxh6 {[%clk 0:01:05]}  Ke8 {[%clk 0:00:23]} 53. Rh8+ {[%clk 0:01:05]}  Kd7 {[%clk 0:00:22]} 54. Ra8 {[%clk 0:01:05]}  a2 {[%clk 0:00:22]} 55. h6 {[%clk 0:01:04]}  Rh2 {[%clk 0:00:21]} 56. Kg6 {[%clk 0:01:03]}  Be4+ {[%clk 0:00:21]} 57. f5 {[%clk 0:01:02]}  Rf2 {[%clk 0:00:20]} 58. Rf8 {[%clk 0:00:59]}  Rg2+ {[%clk 0:00:17]} 59. Kf6 {[%clk 0:00:57]}  Rf2 {[%clk 0:00:12]} 60. Kg5 {[%clk 0:00:54]}  Rg2+ {[%clk 0:00:11]} 61. Kf4 {[%clk 0:00:54]}  Bxf5 {[%clk 0:00:08]} 62. Rxf5 {[%clk 0:00:53]}  Rf2+ {[%clk 0:00:07]} 63. Kg5 {[%clk 0:00:53]}  Rh2 {[%clk 0:00:04]} 64. Rf7+ {[%clk 0:00:52]}  Ke6 {[%clk 0:00:04]} 65. Bxh2 {[%clk 0:00:49]}  a1=Q {[%clk 0:00:03]} 66. Rxb7 {[%clk 0:00:40]}  Qc1+ {[%clk 0:00:01]} 67. Kg6 {[%clk 0:00:38]}  Qc2+ {[%clk 0:00:00]} 68. Kg7 {[%clk 0:00:37]} 1-0